[Event "SM-blixten 2025"]
[Site "Uppsala, Sweden"]
[Date "2025.07.03"]
[Round "2.9"]
[White "Sandstrom, Ludvig"]
[Black "Bjorkman, Filip"]
[Result "0-1"]
[TimeControl "3 min + 2 sec increment starting from move 1"]
[WhiteElo "2327"]
[BlackElo "2116"]

1. Nf3 {[%clk 00:03:02]} {[%emt 00:00:01]} Nf6 {[%clk 00:03:03]} {[%emt
00:00:02]} 2. c4 {[%clk 00:03:02]} {[%emt 00:00:02]} g6 {[%clk 00:03:03]}
{[%emt 00:00:02]} 3. Nc3 {[%clk 00:03:02]} {[%emt 00:00:02]} Bg7 {[%clk
00:03:02]} {[%emt 00:00:03]} 4. e4 {[%clk 00:03:02]} {[%emt 00:00:02]} e5
{[%clk 00:03:03]} {[%emt 00:00:01]} 5. d4 {[%clk 00:02:39]} {[%emt 00:00:25]}
exd4 {[%clk 00:02:57]} {[%emt 00:00:08]} 6. Nxd4 {[%clk 00:02:40]} {[%emt
00:00:02]} O-O {[%clk 00:02:55]} {[%emt 00:00:03]} 7. Bd3 {[%clk 00:02:41]} d6
{[%clk 00:02:55]} {[%emt 00:00:02]} 8. O-O {[%clk 00:02:40]} {[%emt 00:00:01]}
Bd7 {[%clk 00:02:53]} {[%emt 00:00:05]} 9. Bg5 {[%clk 00:02:36]} {[%emt
00:00:06]} h6 {[%clk 00:02:52]} {[%emt 00:00:04]} 10. Bh4 {[%clk 00:02:36]}
{[%emt 00:00:01]} g5 {[%clk 00:02:45]} {[%emt 00:00:09]} 11. Bg3 {[%clk
00:02:37]} {[%emt 00:00:01]} Nc6 {[%clk 00:02:46]} {[%emt 00:00:01]} 12. Nc2
{[%clk 00:02:28]} {[%emt 00:00:12]} Re8 {[%clk 00:02:44]} {[%emt 00:00:03]} 13.
Ne3 {[%clk 00:02:22]} {[%emt 00:00:08]} Ne5 {[%clk 00:02:32]} {[%emt 00:00:14]}
14. Bc2 {[%clk 00:01:54]} {[%emt 00:00:31]} Nfg4 {[%clk 00:02:29]} {[%emt
00:00:04]} 15. Nf5 {[%clk 00:01:33]} {[%emt 00:00:23]} Bxf5 16. exf5 {[%clk
00:01:34]} Nf6 {[%clk 00:02:21]} {[%emt 00:00:06]} 17. b3 {[%clk 00:01:34]}
{[%emt 00:00:03]} Nc6 {[%clk 00:02:09]} {[%emt 00:00:13]} 18. Rc1 {[%clk
00:01:25]} {[%emt 00:00:11]} Qd7 {[%clk 00:02:09]} {[%emt 00:00:02]} 19. Qd2
{[%clk 00:01:07]} {[%emt 00:00:20]} Nh5 {[%clk 00:02:06]} {[%emt 00:00:05]} 20.
Nd5 {[%clk 00:01:08]} {[%emt 00:00:02]} Ne7 {[%clk 00:01:53]} {[%emt 00:00:14]}
21. Ne3 {[%clk 00:00:49]} {[%emt 00:00:21]} Rad8 {[%clk 00:01:38]} {[%emt
00:00:17]} 22. Rfd1 {[%clk 00:00:49]} {[%emt 00:00:02]} Nxg3 {[%clk 00:01:36]}
{[%emt 00:00:04]} 23. hxg3 {[%clk 00:00:50]} Nc6 {[%clk 00:01:36]} {[%emt
00:00:03]} 24. Bb1 {[%clk 00:00:46]} {[%emt 00:00:06]} Ne5 {[%clk 00:01:29]}
{[%emt 00:00:09]} 25. g4 {[%clk 00:00:43]} {[%emt 00:00:04]} c6 {[%clk
00:01:29]} {[%emt 00:00:02]} 26. Re1 {[%clk 00:00:20]} {[%emt 00:00:25]} Qc7
{[%clk 00:01:30]} {[%emt 00:00:01]} 27. f6 {[%clk 00:00:15]} {[%emt 00:00:08]}
Bxf6 {[%clk 00:01:25]} {[%emt 00:00:07]} 28. Nf5 {[%clk 00:00:16]} Nxg4 {[%clk
00:01:19]} {[%emt 00:00:08]} 29. Qc2 {[%clk 00:00:15]} {[%emt 00:00:03]} Re5
{[%clk 00:01:05]} {[%emt 00:00:16]} 30. Nxh6+ {[%clk 00:00:14]} {[%emt
00:00:04]} Nxh6 {[%clk 00:01:03]} {[%emt 00:00:04]} 31. Qh7+ {[%clk 00:00:14]}
Kf8 {[%clk 00:01:04]} {[%emt 00:00:02]} 32. Qxh6+ {[%clk 00:00:15]} {[%emt
00:00:01]} Bg7 {[%clk 00:01:05]} {[%emt 00:00:01]} 33. Qh3 {[%clk 00:00:15]}
{[%emt 00:00:02]} Qe7 {[%clk 00:01:05]} {[%emt 00:00:02]} 34. Rxe5 Qxe5 {[%clk
00:01:06]} 35. Qd3 {[%clk 00:00:12]} {[%emt 00:00:01]} d5 {[%clk 00:01:05]}
{[%emt 00:00:04]} 36. cxd5 {[%clk 00:00:10]} {[%emt 00:00:04]} Rxd5 {[%clk
00:01:06]} {[%emt 00:00:01]} 37. Qc4 {[%clk 00:00:09]} {[%emt 00:00:02]} Qd6
{[%clk 00:01:00]} {[%emt 00:00:08]} 38. Qe2 {[%clk 00:00:09]} {[%emt 00:00:02]}
Rd2 {[%clk 00:00:59]} {[%emt 00:00:02]} 39. Qf3 {[%clk 00:00:09]} {[%emt
00:00:03]} Bd4 {[%clk 00:00:57]} {[%emt 00:00:04]} 40. Rf1 {[%clk 00:00:10]}
{[%emt 00:00:01]} Qc5 {[%clk 00:00:51]} {[%emt 00:00:08]} 41. Qg3 {[%emt
00:00:06]} Bf6 {[%clk 00:00:41]} {[%emt 00:00:10]} 42. Qb8+ {[%clk 00:00:10]}
Kg7 {[%clk 00:00:40]} {[%emt 00:00:03]} 43. Qh2 {[%clk 00:00:10]} Qd4 {[%clk
00:00:33]} {[%emt 00:00:09]} 44. Qg3 {[%clk 00:00:11]} {[%emt 00:00:02]} Rd1
{[%clk 00:00:32]} {[%emt 00:00:02]} 45. Qd3 {[%clk 00:00:04]} {[%emt 00:00:08]}
Rxd3 {[%clk 00:00:33]} {[%emt 00:00:02]} 0-1

[Event "SM-blixten 2025"]
[Site "Uppsala, Sweden"]
[Date "2025.07.03"]
[Round "4.5"]
[White "Karlsson, Stefan 2005"]
[Black "Karlsson, Tomas"]
[Result "1-0"]
[TimeControl "3 min + 2 sec increment starting from move 1"]
[BlackTitle "FM"]
[WhiteElo "2127"]
[BlackElo "2239"]

1. d3 {[%clk 00:03:02]} {[%emt 00:00:02]} d5 {[%clk 00:03:02]} {[%emt
00:00:03]} 2. Nd2 {[%clk 00:03:03]} e6 {[%clk 00:03:03]} {[%emt 00:00:02]} 3.
e4 {[%clk 00:03:01]} {[%emt 00:00:04]} c5 {[%clk 00:03:01]} {[%emt 00:00:03]} 4.
g3 {[%clk 00:03:02]} {[%emt 00:00:02]} Nf6 {[%clk 00:03:01]} {[%emt 00:00:01]}
5. Bg2 {[%clk 00:03:03]} {[%emt 00:00:01]} Nc6 {[%clk 00:03:02]} {[%emt
00:00:02]} 6. Nh3 {[%clk 00:02:56]} {[%emt 00:00:08]} Be7 {[%clk 00:03:00]}
{[%emt 00:00:04]} 7. O-O {[%clk 00:02:57]} {[%emt 00:00:02]} O-O {[%clk
00:03:00]} {[%emt 00:00:03]} 8. f4 {[%clk 00:02:53]} {[%emt 00:00:05]} dxe4
{[%clk 00:02:58]} {[%emt 00:00:04]} 9. dxe4 {[%clk 00:02:54]} {[%emt 00:00:01]}
Qd4+ {[%clk 00:02:50]} {[%emt 00:00:10]} 10. Nf2 {[%clk 00:02:53]} {[%emt
00:00:03]} Rd8 {[%clk 00:02:49]} {[%emt 00:00:03]} 11. c3 {[%clk 00:02:53]}
{[%emt 00:00:02]} Qd7 {[%clk 00:02:46]} {[%emt 00:00:04]} 12. Qe2 {[%clk
00:02:49]} {[%emt 00:00:06]} e5 {[%clk 00:02:43]} {[%emt 00:00:06]} 13. f5
{[%clk 00:02:42]} {[%emt 00:00:09]} Rb8 {[%clk 00:02:29]} {[%emt 00:00:16]} 14.
a4 {[%clk 00:02:32]} {[%emt 00:00:11]} b6 {[%clk 00:02:25]} {[%emt 00:00:07]}
15. g4 {[%clk 00:02:31]} {[%emt 00:00:03]} Ne8 {[%clk 00:02:22]} {[%emt
00:00:06]} 16. Nf3 {[%clk 00:02:28]} {[%emt 00:00:05]} Qc7 {[%clk 00:02:16]}
{[%emt 00:00:08]} 17. g5 {[%clk 00:02:15]} {[%emt 00:00:14]} Nd6 {[%clk
00:02:06]} {[%emt 00:00:13]} 18. Ng4 {[%clk 00:01:56]} {[%emt 00:00:20]} f6
{[%clk 00:02:01]} {[%emt 00:00:07]} 19. gxf6 {[%clk 00:01:52]} {[%emt
00:00:07]} gxf6 {[%clk 00:02:00]} {[%emt 00:00:03]} 20. Kh1 {[%clk 00:01:16]}
{[%emt 00:00:37]} Bd7 {[%clk 00:01:55]} {[%emt 00:00:08]} 21. Rg1 {[%clk
00:01:14]} {[%emt 00:00:04]} Kh8 {[%clk 00:01:55]} {[%emt 00:00:02]} 22. Nh6
{[%clk 00:01:12]} {[%emt 00:00:04]} Rf8 {[%clk 00:01:46]} {[%emt 00:00:10]} 23.
Nh4 {[%clk 00:01:12]} {[%emt 00:00:02]} Nf7 {[%clk 00:01:37]} {[%emt 00:00:12]}
24. Nxf7+ {[%clk 00:00:54]} {[%emt 00:00:20]} Rxf7 {[%clk 00:01:37]} {[%emt
00:00:02]} 25. Qh5 {[%clk 00:00:52]} {[%emt 00:00:04]} Be8 {[%clk 00:01:16]}
{[%emt 00:00:23]} 26. Ng6+ {[%clk 00:00:42]} {[%emt 00:00:12]} Kg8 {[%clk
00:01:13]} {[%emt 00:00:06]} 27. Bf1 {[%clk 00:00:40]} {[%emt 00:00:04]} Rg7
{[%clk 00:00:46]} {[%emt 00:00:29]} 28. Bc4+ {[%clk 00:00:41]} {[%emt
00:00:01]} Bf7 {[%clk 00:00:46]} {[%emt 00:00:02]} 29. Nxe7+ {[%clk 00:00:32]}
{[%emt 00:00:11]} Qxe7 {[%clk 00:00:44]} {[%emt 00:00:03]} 30. Rxg7+ {[%clk
00:00:32]} {[%emt 00:00:02]} Kxg7 {[%clk 00:00:45]} {[%emt 00:00:02]} 31. Bh6+
{[%clk 00:00:33]} 1-0

[Event "SM-blixten 2025"]
[Site "Uppsala, Sweden"]
[Date "2025.07.03"]
[Round "6.1"]
[White "Galperin, Platon"]
[Black "Malmstig, Erik"]
[Result "1-0"]
[TimeControl "3 min + 2 sec increment starting from move 1"]
[WhiteTitle "GM"]
[BlackTitle "FM"]
[WhiteElo "2506"]
[BlackElo "2231"]

1. Nf3 {[%clk 00:03:03]} c5 {[%clk 00:03:01]} {[%emt 00:00:04]} 2. c4 {[%clk
00:03:00]} {[%emt 00:00:04]} Nc6 {[%clk 00:03:02]} {[%emt 00:00:01]} 3. Nc3
{[%clk 00:02:58]} {[%emt 00:00:05]} Nf6 {[%clk 00:03:03]} {[%emt 00:00:01]} 4.
d4 {[%clk 00:02:59]} {[%emt 00:00:01]} cxd4 {[%clk 00:03:04]} {[%emt 00:00:01]}
5. Nxd4 {[%clk 00:02:59]} {[%emt 00:00:02]} g6 {[%clk 00:03:05]} 6. e4 {[%clk
00:03:00]} {[%emt 00:00:01]} Bg7 {[%clk 00:03:06]} {[%emt 00:00:02]} 7. Be3
{[%clk 00:03:01]} d6 {[%clk 00:03:06]} {[%emt 00:00:01]} 8. Be2 {[%clk
00:03:02]} {[%emt 00:00:02]} O-O {[%clk 00:03:06]} {[%emt 00:00:02]} 9. O-O
{[%clk 00:03:01]} {[%emt 00:00:02]} Bd7 {[%clk 00:03:07]} {[%emt 00:00:01]} 10.
h3 {[%clk 00:03:02]} {[%emt 00:00:01]} Rc8 {[%clk 00:03:08]} {[%emt 00:00:02]}
11. Qc2 {[%clk 00:02:46]} {[%emt 00:00:18]} a6 {[%clk 00:03:06]} {[%emt
00:00:04]} 12. Rad1 {[%clk 00:02:46]} {[%emt 00:00:01]} Qc7 {[%clk 00:03:04]}
{[%emt 00:00:05]} 13. Nf3 {[%clk 00:02:44]} {[%emt 00:00:04]} Rfe8 {[%clk
00:03:03]} {[%emt 00:00:02]} 14. a3 {[%clk 00:02:42]} {[%emt 00:00:05]} Na5
{[%clk 00:02:58]} {[%emt 00:00:08]} 15. Nd2 {[%clk 00:02:36]} {[%emt 00:00:07]}
Be6 {[%clk 00:02:54]} {[%emt 00:00:06]} 16. b3 {[%clk 00:02:21]} {[%emt
00:00:17]} b5 {[%clk 00:02:52]} {[%emt 00:00:04]} 17. f4 {[%clk 00:02:10]}
{[%emt 00:00:13]} bxc4 {[%clk 00:02:50]} {[%emt 00:00:04]} 18. b4 {[%clk
00:02:11]} {[%emt 00:00:01]} Nb3 {[%clk 00:02:51]} {[%emt 00:00:01]} 19. Nf3
{[%clk 00:02:08]} {[%emt 00:00:05]} Qb7 {[%clk 00:02:37]} {[%emt 00:00:16]} 20.
Ng5 {[%clk 00:02:03]} {[%emt 00:00:06]} Bd7 {[%clk 00:01:53]} {[%emt 00:00:46]}
21. e5 {[%clk 00:02:01]} {[%emt 00:00:04]} Bf5 {[%clk 00:01:53]} {[%emt
00:00:02]} 22. Qb2 {[%clk 00:01:59]} {[%emt 00:00:04]} dxe5 {[%clk 00:01:52]}
{[%emt 00:00:04]} 23. fxe5 {[%clk 00:01:59]} {[%emt 00:00:03]} Nd7 {[%clk
00:01:52]} {[%emt 00:00:01]} 24. g4 {[%clk 00:01:23]} {[%emt 00:00:37]} Be6
{[%clk 00:01:38]} {[%emt 00:00:17]} 25. Nxe6 {[%clk 00:00:37]} {[%emt
00:00:48]} fxe6 {[%clk 00:01:38]} {[%emt 00:00:01]} 26. Bxc4 {[%clk 00:00:37]}
{[%emt 00:00:02]} Rxc4 {[%clk 00:01:40]} {[%emt 00:00:01]} 27. Qxb3 {[%clk
00:00:37]} {[%emt 00:00:02]} Qc6 {[%clk 00:01:38]} {[%emt 00:00:03]} 28. Ne2
{[%clk 00:00:35]} {[%emt 00:00:05]} Nxe5 {[%clk 00:01:34]} {[%emt 00:00:06]} 29.
Bc5 {[%clk 00:00:26]} {[%emt 00:00:11]} Qe4 {[%clk 00:01:23]} {[%emt 00:00:13]}
30. Ng3 {[%clk 00:00:27]} {[%emt 00:00:01]} Qc2 {[%clk 00:01:21]} {[%emt
00:00:03]} 31. Qxc2 {[%clk 00:00:21]} {[%emt 00:00:09]} Rxc2 {[%clk 00:01:22]}
{[%emt 00:00:01]} 32. Rf2 {[%clk 00:00:15]} {[%emt 00:00:07]} Rc3 {[%clk
00:01:20]} {[%emt 00:00:04]} 33. Kg2 {[%clk 00:00:11]} {[%emt 00:00:07]} Nd3
{[%clk 00:01:18]} {[%emt 00:00:04]} 34. Rf3 {[%clk 00:00:07]} {[%emt 00:00:06]}
Rc2+ {[%clk 00:01:10]} {[%emt 00:00:09]} 35. Bf2 {[%clk 00:00:07]} {[%emt
00:00:02]} Nb2 {[%clk 00:01:00]} {[%emt 00:00:12]} 36. Rd7 {[%clk 00:00:06]}
{[%emt 00:00:03]} Nc4 {[%clk 00:00:57]} {[%emt 00:00:06]} 37. Ra7 {[%clk
00:00:04]} {[%emt 00:00:04]} e5 {[%clk 00:00:55]} {[%emt 00:00:05]} 38. Rxa6
{[%clk 00:00:05]} {[%emt 00:00:01]} e4 {[%clk 00:00:56]} 39. Nxe4 {[%clk
00:00:05]} {[%emt 00:00:02]} Bd4 {[%clk 00:00:56]} {[%emt 00:00:02]} 40. Kg3
{[%clk 00:00:05]} {[%emt 00:00:04]} Be5+ {[%clk 00:00:57]} {[%emt 00:00:03]} 41.
Kg2 {[%clk 00:00:06]} Bd4 {[%clk 00:00:58]} {[%emt 00:00:01]} 42. Kf1 {[%clk
00:00:04]} {[%emt 00:00:04]} Bxf2 {[%clk 00:00:55]} {[%emt 00:00:06]} 43. Rxf2
{[%clk 00:00:06]} {[%emt 00:00:01]} Rc1+ {[%clk 00:00:55]} {[%emt 00:00:02]} 44.
Kg2 {[%clk 00:00:06]} {[%emt 00:00:01]} Re1 {[%clk 00:00:53]} {[%emt 00:00:04]}
45. Ng5 {[%clk 00:00:05]} {[%emt 00:00:02]} Ne3+ {[%clk 00:00:50]} {[%emt
00:00:05]} 46. Kg3 {[%clk 00:00:06]} {[%emt 00:00:02]} Rg1+ {[%clk 00:00:47]}
{[%emt 00:00:05]} 47. Kh2 {[%clk 00:00:06]} {[%emt 00:00:01]} Ra1 {[%clk
00:00:44]} {[%emt 00:00:05]} 48. b5 {[%clk 00:00:06]} {[%emt 00:00:03]} Rb8
{[%clk 00:00:43]} {[%emt 00:00:03]} 49. a4 {[%clk 00:00:07]} {[%emt 00:00:02]}
h6 {[%clk 00:00:42]} {[%emt 00:00:02]} 50. Ne4 {[%clk 00:00:07]} {[%emt
00:00:02]} Nf1+ {[%clk 00:00:40]} {[%emt 00:00:04]} 51. Kg2 {[%clk 00:00:07]}
{[%emt 00:00:02]} Ne3+ {[%clk 00:00:41]} 52. Kg3 {[%clk 00:00:09]} Ra3 {[%clk
00:00:42]} {[%emt 00:00:01]} 53. Kf4 {[%clk 00:00:09]} {[%emt 00:00:02]} Rf8+
{[%clk 00:00:43]} {[%emt 00:00:01]} 54. Ke5 {[%clk 00:00:10]} {[%emt 00:00:01]}
Rxf2 {[%clk 00:00:44]} {[%emt 00:00:01]} 55. Nxf2 {[%clk 00:00:11]} {[%emt
00:00:01]} Nc4+ {[%clk 00:00:44]} {[%emt 00:00:02]} 56. Kd5 {[%clk 00:00:09]}
{[%emt 00:00:02]} Rc3 {[%clk 00:00:43]} {[%emt 00:00:05]} 57. Kd4 {[%clk
00:00:06]} {[%emt 00:00:05]} Rc2 {[%clk 00:00:43]} {[%emt 00:00:02]} 58. Rc6
{[%clk 00:00:06]} {[%emt 00:00:02]} e5+ {[%clk 00:00:41]} {[%emt 00:00:04]} 59.
Kd3 {[%clk 00:00:07]} {[%emt 00:00:01]} Rxf2 {[%clk 00:00:38]} {[%emt
00:00:04]} 60. Rxc4 {[%clk 00:00:06]} {[%emt 00:00:04]} Rf3+ {[%clk 00:00:40]}
61. Ke4 {[%clk 00:00:05]} {[%emt 00:00:03]} Rxh3 {[%clk 00:00:40]} {[%emt
00:00:02]} 62. b6 {[%clk 00:00:05]} {[%emt 00:00:02]} Rb3 {[%clk 00:00:41]}
{[%emt 00:00:02]} 63. a5 {[%clk 00:00:06]} {[%emt 00:00:01]} h5 {[%clk
00:00:42]} 64. gxh5 {[%clk 00:00:06]} {[%emt 00:00:02]} gxh5 {[%emt 00:00:01]}
65. Rc7 {[%clk 00:00:07]} {[%emt 00:00:01]} h4 {[%clk 00:00:44]} {[%emt
00:00:02]} 66. b7 {[%clk 00:00:06]} {[%emt 00:00:02]} 1-0

[Event "SM-blixten 2025"]
[Site "Uppsala, Sweden"]
[Date "2025.07.03"]
[Round "7.7"]
[White "Jonsson, Mikael"]
[Black "Odell Johansson, Leo"]
[Result "1-0"]
[TimeControl "3 min + 2 sec increment starting from move 1"]
[WhiteElo "2204"]
[BlackElo "1991"]

1. e4 {[%clk 00:02:59]} {[%emt 00:00:05]} c5 {[%clk 00:03:05]} {[%emt
00:00:01]} 2. Nf3 {[%clk 00:02:59]} {[%emt 00:00:02]} Nc6 {[%clk 00:03:05]}
{[%emt 00:00:01]} 3. d4 {[%clk 00:02:59]} {[%emt 00:00:02]} cxd4 {[%clk
00:03:06]} 4. Nxd4 {[%clk 00:03:00]} {[%emt 00:00:02]} e5 {[%clk 00:03:07]}
{[%emt 00:00:01]} 5. Nb5 {[%clk 00:03:00]} d6 {[%clk 00:03:09]} {[%emt
00:00:01]} 6. Bc4 {[%clk 00:03:00]} {[%emt 00:00:02]} a6 {[%clk 00:02:53]}
{[%emt 00:00:18]} 7. N5c3 {[%clk 00:03:00]} {[%emt 00:00:02]} Be7 {[%clk
00:02:35]} {[%emt 00:00:20]} 8. O-O {[%clk 00:02:56]} {[%emt 00:00:05]} Nf6
{[%clk 00:02:24]} {[%emt 00:00:13]} 9. Bg5 {[%clk 00:02:51]} {[%emt 00:00:06]}
O-O {[%clk 00:01:48]} {[%emt 00:00:39]} 10. Bxf6 {[%clk 00:02:49]} {[%emt
00:00:03]} Bxf6 {[%clk 00:01:48]} {[%emt 00:00:02]} 11. Nd5 {[%clk 00:02:50]}
{[%emt 00:00:01]} Bg5 {[%clk 00:01:30]} {[%emt 00:00:21]} 12. Nbc3 {[%clk
00:02:48]} {[%emt 00:00:03]} Be6 {[%clk 00:01:28]} {[%emt 00:00:04]} 13. a4
{[%clk 00:02:40]} {[%emt 00:00:10]} Rc8 {[%clk 00:01:08]} {[%emt 00:00:23]} 14.
Bb3 {[%clk 00:02:24]} {[%emt 00:00:17]} Nd4 {[%clk 00:01:02]} {[%emt 00:00:07]}
15. a5 {[%clk 00:02:02]} {[%emt 00:00:24]} Nxb3 {[%clk 00:00:48]} {[%emt
00:00:17]} 16. cxb3 {[%clk 00:02:02]} {[%emt 00:00:02]} Rc6 {[%clk 00:00:24]}
{[%emt 00:00:25]} 17. Qe2 {[%clk 00:01:46]} {[%emt 00:00:17]} f5 {[%clk
00:00:25]} {[%emt 00:00:02]} 18. exf5 {[%clk 00:01:46]} {[%emt 00:00:02]} Bxf5
{[%clk 00:00:19]} {[%emt 00:00:08]} 19. Ne4 {[%clk 00:01:42]} {[%emt 00:00:06]}
Bh6 {[%clk 00:00:17]} {[%emt 00:00:04]} 20. b4 {[%clk 00:01:28]} {[%emt
00:00:15]} Qd7 {[%clk 00:00:11]} {[%emt 00:00:09]} 21. Rad1 {[%clk 00:01:26]}
{[%emt 00:00:03]} Rd8 {[%clk 00:00:10]} {[%emt 00:00:03]} 22. Ndf6+ {[%clk
00:01:25]} {[%emt 00:00:04]} gxf6 {[%clk 00:00:07]} {[%emt 00:00:05]} 23. Nxf6+
{[%clk 00:01:25]} {[%emt 00:00:01]} Kh8 {[%clk 00:00:08]} {[%emt 00:00:02]} 24.
Nxd7 {[%clk 00:01:25]} {[%emt 00:00:02]} Rxd7 {[%clk 00:00:09]} {[%emt
00:00:01]} 25. Qh5 {[%clk 00:01:26]} {[%emt 00:00:01]} Bc2 {[%clk 00:00:06]}
{[%emt 00:00:05]} 26. Qe8+ {[%clk 00:01:24]} {[%emt 00:00:03]} 1-0

[Event "SM-blixten 2025"]
[Site "Uppsala, Sweden"]
[Date "2025.07.03"]
[Round "9.3"]
[White "Ostlund, Joar"]
[Black "Johnson, Daniel"]
[Result "0-1"]
[TimeControl "3 min + 2 sec increment starting from move 1"]
[WhiteTitle "FM"]
[WhiteElo "2322"]
[BlackElo "2175"]

1. d4 {[%clk 00:03:03]} Nf6 {[%clk 00:03:02]} {[%emt 00:00:03]} 2. c4 {[%clk
00:03:04]} {[%emt 00:00:01]} e6 {[%clk 00:03:02]} {[%emt 00:00:01]} 3. Nf3
{[%clk 00:03:05]} {[%emt 00:00:02]} d5 {[%clk 00:03:03]} {[%emt 00:00:01]} 4.
Nc3 {[%clk 00:03:06]} {[%emt 00:00:02]} Be7 {[%clk 00:03:03]} {[%emt 00:00:01]}
5. Bf4 {[%clk 00:03:06]} {[%emt 00:00:01]} O-O {[%clk 00:03:03]} {[%emt
00:00:02]} 6. e3 {[%clk 00:03:07]} {[%emt 00:00:01]} Nbd7 {[%clk 00:03:03]}
{[%emt 00:00:02]} 7. c5 {[%clk 00:03:06]} {[%emt 00:00:03]} Ne4 {[%clk
00:03:04]} {[%emt 00:00:01]} 8. Nxe4 {[%clk 00:02:47]} {[%emt 00:00:22]} dxe4
{[%clk 00:03:04]} {[%emt 00:00:01]} 9. Ne5 {[%clk 00:02:48]} {[%emt 00:00:02]}
Nxe5 {[%clk 00:02:48]} {[%emt 00:00:18]} 10. Bxe5 {[%clk 00:02:48]} {[%emt
00:00:01]} b6 {[%clk 00:01:55]} {[%emt 00:00:56]} 11. c6 {[%clk 00:02:24]}
{[%emt 00:00:25]} Bb4+ {[%clk 00:01:55]} {[%emt 00:00:03]} 12. Ke2 {[%clk
00:02:19]} {[%emt 00:00:07]} Ba6+ {[%clk 00:01:55]} {[%emt 00:00:02]} 0-1

[Event "SM-blixten 2025"]
[Site "Uppsala, Sweden"]
[Date "2025.07.03"]
[Round "10.9"]
[White "Nilsson, Joakim"]
[Black "Berovski, Krum"]
[Result "1-0"]
[TimeControl "3 min + 2 sec increment starting from move 1"]
[WhiteTitle "FM"]
[WhiteElo "2208"]
[BlackElo "2344"]

1. Nf3 {[%clk 00:03:02]} {[%emt 00:00:01]} Nf6 {[%clk 00:03:03]} {[%emt
00:00:01]} 2. b3 {[%clk 00:03:03]} {[%emt 00:00:01]} e6 {[%clk 00:03:03]}
{[%emt 00:00:02]} 3. Bb2 {[%clk 00:03:04]} Be7 {[%clk 00:03:04]} 4. g3 {[%clk
00:03:05]} {[%emt 00:00:01]} d5 {[%clk 00:03:05]} 5. Bg2 {[%clk 00:03:07]} c6
{[%clk 00:03:07]} {[%emt 00:00:02]} 6. O-O {[%clk 00:03:07]} {[%emt 00:00:01]}
O-O {[%clk 00:03:07]} {[%emt 00:00:02]} 7. c4 {[%clk 00:03:05]} {[%emt
00:00:04]} Nbd7 {[%clk 00:03:08]} {[%emt 00:00:01]} 8. d4 {[%clk 00:03:05]}
{[%emt 00:00:02]} b6 {[%clk 00:03:03]} {[%emt 00:00:07]} 9. Nbd2 {[%clk
00:03:05]} {[%emt 00:00:01]} Bb7 {[%clk 00:03:05]} 10. Qc2 {[%clk 00:03:06]}
{[%emt 00:00:01]} c5 {[%clk 00:02:56]} {[%emt 00:00:11]} 11. e4 {[%clk
00:03:01]} {[%emt 00:00:07]} dxe4 {[%clk 00:02:45]} {[%emt 00:00:14]} 12. Ng5
{[%clk 00:02:55]} {[%emt 00:00:06]} cxd4 {[%clk 00:02:41]} {[%emt 00:00:07]} 13.
Bxd4 {[%clk 00:02:48]} {[%emt 00:00:09]} Nc5 {[%clk 00:02:19]} {[%emt
00:00:24]} 14. Bxc5 {[%clk 00:02:41]} {[%emt 00:00:10]} Bxc5 {[%clk 00:02:18]}
{[%emt 00:00:03]} 15. Ndxe4 {[%clk 00:02:40]} {[%emt 00:00:03]} Nxe4 {[%clk
00:01:59]} {[%emt 00:00:20]} 16. Nxe4 {[%clk 00:02:40]} Bd4 {[%clk 00:01:44]}
{[%emt 00:00:18]} 17. Rad1 {[%clk 00:02:27]} {[%emt 00:00:15]} Rb8 {[%clk
00:01:36]} {[%emt 00:00:10]} 18. h4 {[%clk 00:02:21]} {[%emt 00:00:08]} h6
{[%clk 00:01:28]} {[%emt 00:00:11]} 19. Rd3 {[%clk 00:02:00]} {[%emt 00:00:22]}
e5 {[%clk 00:01:09]} {[%emt 00:00:21]} 20. Nc3 {[%clk 00:01:53]} {[%emt
00:00:09]} Bxg2 {[%clk 00:01:05]} {[%emt 00:00:06]} 21. Kxg2 {[%clk 00:01:53]}
{[%emt 00:00:02]} Qf6 {[%clk 00:00:50]} {[%emt 00:00:17]} 22. Nd5 {[%clk
00:01:49]} {[%emt 00:00:05]} Qc6 {[%clk 00:00:52]} 23. Kh2 {[%clk 00:01:48]}
{[%emt 00:00:03]} Kh8 {[%clk 00:00:50]} {[%emt 00:00:03]} 24. f4 {[%clk
00:01:45]} {[%emt 00:00:06]} Rbd8 {[%clk 00:00:38]} {[%emt 00:00:14]} 25. Qe2
{[%clk 00:01:39]} {[%emt 00:00:08]} Rde8 {[%clk 00:00:22]} {[%emt 00:00:19]} 26.
fxe5 {[%clk 00:01:10]} {[%emt 00:00:30]} Rxe5 {[%clk 00:00:16]} {[%emt
00:00:08]} 27. Qg4 {[%clk 00:01:00]} {[%emt 00:00:12]} Rxd5 {[%clk 00:00:16]}
{[%emt 00:00:03]} 28. Rxd4 {[%emt 00:00:10]} Rxd4 29. Qxd4 {[%clk 00:00:51]}
{[%emt 00:00:02]} Qe6 {[%clk 00:00:18]} 30. Rf2 {[%clk 00:00:46]} {[%emt
00:00:07]} Re8 {[%clk 00:00:19]} {[%emt 00:00:02]} 31. Qf4 {[%clk 00:00:45]}
{[%emt 00:00:03]} Kg8 {[%clk 00:00:20]} {[%emt 00:00:01]} 32. b4 {[%clk
00:00:41]} {[%emt 00:00:06]} h5 {[%clk 00:00:20]} {[%emt 00:00:01]} 33. c5
{[%clk 00:00:40]} {[%emt 00:00:03]} bxc5 {[%clk 00:00:20]} {[%emt 00:00:02]} 34.
bxc5 {[%clk 00:00:42]} {[%emt 00:00:01]} Rc8 {[%clk 00:00:20]} {[%emt
00:00:01]} 35. Rc2 {[%clk 00:00:40]} {[%emt 00:00:03]} Qd5 {[%clk 00:00:21]}
{[%emt 00:00:02]} 36. Qe3 {[%clk 00:00:37]} {[%emt 00:00:05]} Rc6 {[%clk
00:00:20]} {[%emt 00:00:03]} 37. a4 {[%clk 00:00:23]} {[%emt 00:00:16]} g6
{[%clk 00:00:20]} {[%emt 00:00:01]} 38. a5 {[%clk 00:00:23]} {[%emt 00:00:01]}
Re6 {[%clk 00:00:20]} {[%emt 00:00:03]} 39. Qf4 {[%clk 00:00:23]} {[%emt
00:00:02]} Re1 {[%clk 00:00:18]} {[%emt 00:00:04]} 40. Rg2 {[%clk 00:00:14]}
{[%emt 00:00:10]} Qxc5 {[%clk 00:00:19]} {[%emt 00:00:01]} 41. Qd2 {[%clk
00:00:14]} {[%emt 00:00:02]} Rc1 {[%clk 00:00:19]} {[%emt 00:00:02]} 42. Rf2
{[%clk 00:00:13]} {[%emt 00:00:03]} Qc7 {[%clk 00:00:19]} {[%emt 00:00:03]} 43.
Re2 {[%clk 00:00:09]} {[%emt 00:00:05]} Rc5 {[%clk 00:00:18]} {[%emt 00:00:03]}
44. Re8+ {[%clk 00:00:09]} {[%emt 00:00:02]} Kh7 {[%clk 00:00:19]} 45. Qd4
{[%clk 00:00:07]} {[%emt 00:00:05]} Rc2+ {[%clk 00:00:20]} {[%emt 00:00:01]} 46.
Kh3 {[%clk 00:00:07]} {[%emt 00:00:02]} Qc8+ {[%clk 00:00:21]} {[%emt
00:00:01]} 47. Rxc8 {[%clk 00:00:08]} {[%emt 00:00:01]} Rxc8 {[%clk 00:00:22]}
{[%emt 00:00:01]} 48. Qd7 {[%clk 00:00:09]} Rf8 {[%clk 00:00:20]} {[%emt
00:00:03]} 49. Qxa7 {[%clk 00:00:10]} {[%emt 00:00:01]} 1-0